[Event "*** Titled Tuesday Blitz"]
[Site "Chess.com"]
[Date "2019.10.01"]
[Round "6"]
[White "beccrajoy"]
[Black "Olga_Zhuravleva"]
[Result "0-1"]
[WhiteElo "1772"]
[BlackElo "2193"]
[TimeControl "180+2"]
[EndTime "14:23:32 PDT"]
[Termination "Olga_Zhuravleva won by resignation"]

1. e4 {[%clk 0:03:01.9]} 1... e5 {[%clk 0:03:00]} 2. Nf3 {[%clk 0:03:02.4]} 2...
Nc6 {[%clk 0:03:00.8]} 3. Bb5 {[%clk 0:03:04]} 3... f5 {[%clk 0:03:01.5]} 4. d3
{[%clk 0:02:50.9]} 4... Nf6 {[%clk 0:03:00.4]} 5. O-O {[%clk 0:02:46.9]} 5...
Bc5 {[%clk 0:03:00.2]} 6. c3 {[%clk 0:02:35.6]} 6... Bb6 {[%clk 0:02:40.9]} 7.
Bxc6 {[%clk 0:02:23.5]} 7... dxc6 {[%clk 0:02:38.6]} 8. Nxe5 {[%clk 0:02:23]}
8... fxe4 {[%clk 0:02:25.5]} 9. dxe4 {[%clk 0:02:03.3]} 9... Qxd1 {[%clk
0:02:25.4]} 10. Rxd1 {[%clk 0:02:05.2]} 10... Nxe4 {[%clk 0:02:26.4]} 11. Be3
{[%clk 0:01:55.4]} 11... Bxe3 {[%clk 0:02:19.8]} 12. fxe3 {[%clk 0:01:57.3]}
12... O-O {[%clk 0:02:20.3]} 13. Nd2 {[%clk 0:01:55.7]} 13... Nd6 {[%clk
0:02:16.1]} 14. Nec4 {[%clk 0:01:49.9]} 14... Nf5 {[%clk 0:02:12.3]} 15. e4
{[%clk 0:01:43.8]} 15... Ne7 {[%clk 0:02:05.9]} 16. Rf1 {[%clk 0:01:37.1]} 16...
Be6 {[%clk 0:02:03.9]} 17. Ne3 {[%clk 0:01:33.9]} 17... Rad8 {[%clk 0:01:59.7]}
18. Nf3 {[%clk 0:01:32.3]} 18... Ng6 {[%clk 0:01:57.2]} 19. b3 {[%clk
0:01:16.2]} 19... Rd3 {[%clk 0:01:52]} 20. Nd4 {[%clk 0:00:37.7]} 20... Rxe3
{[%clk 0:01:42.8]} 21. Nxe6 {[%clk 0:00:37.8]} 21... Rxf1+ {[%clk 0:01:41.6]}
22. Rxf1 {[%clk 0:00:36.3]} 22... Rxe4 {[%clk 0:01:43.2]} 23. Nxc7 {[%clk
0:00:19.9]} 23... Re7 {[%clk 0:01:41.6]} 24. Na8 {[%clk 0:00:21]} 24... Nf8
{[%clk 0:01:33.1]} 25. Rd1 {[%clk 0:00:20.8]} 25... Re8 {[%clk 0:01:32.9]} 26.
Nc7 {[%clk 0:00:19.5]} 26... Rc8 {[%clk 0:01:33.8]} 0-1

[Event "*** Titled Tuesday Blitz"]
[Site "Chess.com"]
[Date "2019.10.01"]
[Round "6"]
[White "Durarbayli"]
[Black "Darhild"]
[Result "1-0"]
[WhiteElo "2801"]
[BlackElo "2638"]
[TimeControl "180+2"]
[EndTime "14:23:34 PDT"]
[Termination "Durarbayli won by checkmate"]

1. e4 {[%clk 0:02:59.4]} 1... c5 {[%clk 0:03:00.9]} 2. Nf3 {[%clk 0:02:59.8]}
2... d6 {[%clk 0:03:02]} 3. d4 {[%clk 0:03:00.9]} 3... cxd4 {[%clk 0:03:03.9]}
4. Nxd4 {[%clk 0:03:02.5]} 4... Nf6 {[%clk 0:03:05.3]} 5. Nc3 {[%clk 0:03:04]}
5... a6 {[%clk 0:03:06.8]} 6. Bc4 {[%clk 0:03:04.7]} 6... e6 {[%clk 0:03:06.9]}
7. Bb3 {[%clk 0:03:04.3]} 7... Nbd7 {[%clk 0:03:07.5]} 8. f4 {[%clk 0:03:02.5]}
8... Nc5 {[%clk 0:03:07.1]} 9. Qf3 {[%clk 0:03:02.1]} 9... Be7 {[%clk
0:03:01.2]} 10. g4 {[%clk 0:02:55.9]} 10... Qc7 {[%clk 0:02:19.2]} 11. g5 {[%clk
0:02:51.3]} 11... Nfd7 {[%clk 0:02:20.3]} 12. Qh3 {[%clk 0:01:56.6]} 12... b5
{[%clk 0:01:50.1]} 13. g6 {[%clk 0:01:55.9]} 13... Nf6 {[%clk 0:01:37.3]} 14.
gxf7+ {[%clk 0:01:49.9]} 14... Kxf7 {[%clk 0:01:39.2]} 15. f5 {[%clk 0:01:50.9]}
15... Nxb3 {[%clk 0:00:53.8]} 16. fxe6+ {[%clk 0:01:50.2]} 16... Kg8 {[%clk
0:00:55]} 17. axb3 {[%clk 0:01:49.2]} 17... Bb7 {[%clk 0:00:50.9]} 18. Rg1
{[%clk 0:01:37.3]} 18... b4 {[%clk 0:00:40.4]} 19. Rxg7+ {[%clk 0:01:21.8]}
19... Kxg7 {[%clk 0:00:40.4]} 20. Bh6+ {[%clk 0:01:23.2]} 20... Kg6 {[%clk
0:00:32.7]} 21. Qg3+ {[%clk 0:01:10]} 21... Kxh6 {[%clk 0:00:24.5]} 22. Nf5+
{[%clk 0:01:10]} 22... Kh5 {[%clk 0:00:25.4]} 23. Qh4+ {[%clk 0:01:09.2]} 23...
Kg6 {[%clk 0:00:26.2]} 24. Qh6# {[%clk 0:01:11.1]} 1-0

[Event "*** Titled Tuesday Blitz"]
[Site "Chess.com"]
[Date "2019.10.01"]
[Round "6"]
[White "eldur16"]
[Black "Olga_Girya"]
[Result "1/2-1/2"]
[WhiteElo "2624"]
[BlackElo "2495"]
[TimeControl "180+2"]
[EndTime "14:23:34 PDT"]
[Termination "Game drawn by repetition"]

1. e4 {[%clk 0:03:01.9]} 1... c6 {[%clk 0:03:00.6]} 2. d4 {[%clk 0:03:01.5]}
2... d5 {[%clk 0:03:02.2]} 3. e5 {[%clk 0:03:02.6]} 3... Bf5 {[%clk 0:03:03]} 4.
Nd2 {[%clk 0:03:03.5]} 4... e6 {[%clk 0:03:04.5]} 5. Nb3 {[%clk 0:03:03.8]} 5...
c5 {[%clk 0:03:02.5]} 6. dxc5 {[%clk 0:03:03.1]} 6... Bxc5 {[%clk 0:03:03.6]} 7.
Nxc5 {[%clk 0:02:58.4]} 7... Qa5+ {[%clk 0:03:04.6]} 8. c3 {[%clk 0:02:59.2]}
8... Qxc5 {[%clk 0:03:05.4]} 9. Be3 {[%clk 0:02:57.9]} 9... Qc7 {[%clk
0:03:06.1]} 10. f4 {[%clk 0:02:58.4]} 10... Ne7 {[%clk 0:03:04.1]} 11. Nf3
{[%clk 0:02:59.1]} 11... Nd7 {[%clk 0:03:01.7]} 12. Be2 {[%clk 0:02:55.5]} 12...
O-O {[%clk 0:03:02.6]} 13. O-O {[%clk 0:02:53.9]} 13... a6 {[%clk 0:03:03.8]}
14. a4 {[%clk 0:02:49.6]} 14... Nc5 {[%clk 0:02:55.3]} 15. Nd4 {[%clk
0:02:49.7]} 15... Be4 {[%clk 0:02:55.5]} 16. b4 {[%clk 0:02:45.5]} 16... Nd7
{[%clk 0:02:55.3]} 17. Qe1 {[%clk 0:02:36.4]} 17... Nf5 {[%clk 0:02:53.9]} 18.
Nxf5 {[%clk 0:02:34.7]} 18... Bxf5 {[%clk 0:02:55]} 19. a5 {[%clk 0:02:35.1]}
19... Rac8 {[%clk 0:02:55.9]} 20. Bd4 {[%clk 0:02:35.9]} 20... Be4 {[%clk
0:02:47.9]} 21. g4 {[%clk 0:02:30.3]} 21... f6 {[%clk 0:02:20.7]} 22. Qg3 {[%clk
0:02:09.7]} 22... fxe5 {[%clk 0:02:15.7]} 23. fxe5 {[%clk 0:02:09.9]} 23...
Rxf1+ {[%clk 0:02:11.1]} 24. Rxf1 {[%clk 0:02:09.5]} 24... Rf8 {[%clk 0:02:13]}
25. h4 {[%clk 0:01:59]} 25... Rxf1+ {[%clk 0:02:04.1]} 26. Bxf1 {[%clk 0:01:55]}
26... Nb8 {[%clk 0:01:52]} 27. Bc5 {[%clk 0:01:45.7]} 27... Qf7 {[%clk
0:01:52.8]} 28. Be2 {[%clk 0:01:40.2]} 28... Nc6 {[%clk 0:01:51.7]} 29. g5
{[%clk 0:01:31.1]} 29... Bg6 {[%clk 0:01:17]} 30. Bg4 {[%clk 0:01:19.4]} 30...
Bf5 {[%clk 0:01:15.1]} 31. Be2 {[%clk 0:01:14.1]} 31... Bg6 {[%clk 0:01:15.1]}
32. Bg4 {[%clk 0:01:02.8]} 32... Bf5 {[%clk 0:01:16]} 33. Be2 {[%clk 0:00:55.6]}
33... Bg6 {[%clk 0:01:16.8]} 1/2-1/2

[Event "*** Titled Tuesday Blitz"]
[Site "Chess.com"]
[Date "2019.10.01"]
[Round "6"]
[White "djano"]
[Black "Keaton87"]
[Result "1-0"]
[WhiteElo "2404"]
[BlackElo "2578"]
[TimeControl "180+2"]
[EndTime "14:23:36 PDT"]
[Termination "djano won by resignation"]

1. c4 {[%clk 0:01:52.2]} 1... g6 {[%clk 0:02:59.8]} 2. g3 {[%clk 0:01:53.7]}
2... Nf6 {[%clk 0:03:00.1]} 3. Bg2 {[%clk 0:01:55.3]} 3... d5 {[%clk 0:03:00.1]}
4. cxd5 {[%clk 0:01:56.7]} 4... Nxd5 {[%clk 0:03:02]} 5. Nc3 {[%clk 0:01:58.3]}
5... Nb6 {[%clk 0:03:03]} 6. Nf3 {[%clk 0:01:59.5]} 6... Bg7 {[%clk 0:03:04.3]}
7. d4 {[%clk 0:02:01.2]} 7... Nc6 {[%clk 0:03:04.7]} 8. d5 {[%clk 0:02:01.3]}
8... Bxc3+ {[%clk 0:03:04.5]} 9. bxc3 {[%clk 0:02:02.4]} 9... Qxd5 {[%clk
0:03:05.6]} 10. Bd2 {[%clk 0:01:50.4]} 10... Nc4 {[%clk 0:03:06.4]} 11. O-O
{[%clk 0:01:43.6]} 11... Nxd2 {[%clk 0:03:07.4]} 12. Nxd2 {[%clk 0:01:44.5]}
12... Qh5 {[%clk 0:03:08.1]} 13. Qa4 {[%clk 0:01:29.6]} 13... O-O {[%clk
0:03:07]} 14. e3 {[%clk 0:01:21.5]} 14... Bd7 {[%clk 0:03:04.1]} 15. Rab1 {[%clk
0:01:20.7]} 15... Ne5 {[%clk 0:02:57.1]} 16. Qa3 {[%clk 0:01:04.8]} 16... Bc6
{[%clk 0:02:45.1]} 17. Bxc6 {[%clk 0:00:58.2]} 17... bxc6 {[%clk 0:02:47]} 18.
Qxe7 {[%clk 0:00:59.2]} 18... Rad8 {[%clk 0:02:48.1]} 19. Ne4 {[%clk 0:00:49]}
19... Ng4 {[%clk 0:02:10.6]} 20. Nf6+ {[%clk 0:00:49.4]} 20... Nxf6 {[%clk
0:02:10.8]} 21. Qxf6 {[%clk 0:00:51.3]} 21... Rd6 {[%clk 0:02:02.6]} 22. Qe7
{[%clk 0:00:49.3]} 22... Qa5 {[%clk 0:02:04]} 23. Rb7 {[%clk 0:00:49.4]} 23...
Qxc3 {[%clk 0:01:50.8]} 24. Rxc7 {[%clk 0:00:48.9]} 24... Rd2 {[%clk 0:01:51.1]}
25. Rxa7 {[%clk 0:00:47.9]} 25... c5 {[%clk 0:01:51.6]} 26. Rc7 {[%clk
0:00:45.5]} 26... c4 {[%clk 0:01:52.1]} 27. Qe4 {[%clk 0:00:46.6]} 27... Rc2
{[%clk 0:01:49.2]} 28. a4 {[%clk 0:00:47.9]} 28... Qb4 {[%clk 0:01:11.5]} 29.
Qxc2 {[%clk 0:00:47.7]} 1-0

[Event "*** Titled Tuesday Blitz"]
[Site "Chess.com"]
[Date "2019.10.01"]
[Round "6"]
[White "TheFireChess"]
[Black "Leonid_Starozhilov"]
[Result "0-1"]
[WhiteElo "2508"]
[BlackElo "2678"]
[TimeControl "180+2"]
[EndTime "14:23:50 PDT"]
[Termination "Leonid_Starozhilov won by resignation"]

1. e4 {[%clk 0:03:01.9]} 1... g6 {[%clk 0:03:00.7]} 2. g3 {[%clk 0:03:00.9]}
2... Bg7 {[%clk 0:03:01.3]} 3. Bg2 {[%clk 0:03:02.5]} 3... c5 {[%clk 0:03:00.9]}
4. Nc3 {[%clk 0:03:01.9]} 4... Nc6 {[%clk 0:03:02.2]} 5. d3 {[%clk 0:03:02.6]}
5... e5 {[%clk 0:03:02.6]} 6. Be3 {[%clk 0:03:03.6]} 6... Nd4 {[%clk 0:03:00.6]}
7. Nge2 {[%clk 0:03:01.9]} 7... Ne7 {[%clk 0:02:59.7]} 8. Qd2 {[%clk 0:03:01.9]}
8... d6 {[%clk 0:02:59]} 9. f4 {[%clk 0:03:00.9]} 9... O-O {[%clk 0:02:47.6]}
10. O-O {[%clk 0:02:57.9]} 10... Be6 {[%clk 0:02:19.3]} 11. Rae1 {[%clk
0:02:15.3]} 11... Qd7 {[%clk 0:02:17.3]} 12. Nd1 {[%clk 0:02:01.7]} 12... f5
{[%clk 0:02:10.8]} 13. b3 {[%clk 0:01:42.4]} 13... Rae8 {[%clk 0:02:04.7]} 14.
fxe5 {[%clk 0:01:39.3]} 14... dxe5 {[%clk 0:01:59.2]} 15. c3 {[%clk 0:01:27.7]}
15... Nxe2+ {[%clk 0:01:59.4]} 16. Qxe2 {[%clk 0:01:29.6]} 16... b6 {[%clk
0:01:58.7]} 17. c4 {[%clk 0:01:17.9]} 17... Nc6 {[%clk 0:01:52.3]} 18. Nc3
{[%clk 0:01:17.5]} 18... f4 {[%clk 0:01:44.7]} 19. Bc1 {[%clk 0:00:53.3]} 19...
Qd4+ {[%clk 0:01:43.3]} 20. Kh1 {[%clk 0:00:50.4]} 20... Qxc3 {[%clk 0:01:44.4]}
21. gxf4 {[%clk 0:00:51.5]} 21... Nd4 {[%clk 0:01:40]} 22. Qd1 {[%clk
0:00:38.9]} 22... exf4 {[%clk 0:01:31]} 23. Bxf4 {[%clk 0:00:38]} 23... Qc2
{[%clk 0:01:28.8]} 24. Qxc2 {[%clk 0:00:35.9]} 24... Nxc2 {[%clk 0:01:29.6]} 25.
Re2 {[%clk 0:00:37.8]} 25... Nd4 {[%clk 0:01:27.9]} 26. Ref2 {[%clk 0:00:38.7]}
26... Rf7 {[%clk 0:01:08.5]} 27. Bg3 {[%clk 0:00:35.1]} 27... Ref8 {[%clk
0:01:08.9]} 28. Rxf7 {[%clk 0:00:35.4]} 28... Rxf7 {[%clk 0:01:08.8]} 29. Rxf7
{[%clk 0:00:36.7]} 29... Kxf7 {[%clk 0:01:10.7]} 30. Bb8 {[%clk 0:00:37.9]}
30... Nc6 {[%clk 0:01:11.7]} 31. Bd6 {[%clk 0:00:39.3]} 31... Be5 {[%clk
0:01:12.8]} 32. Bxe5 {[%clk 0:00:40.2]} 32... Nxe5 {[%clk 0:01:14.3]} 0-1

[Event "*** Titled Tuesday Blitz"]
[Site "Chess.com"]
[Date "2019.10.01"]
[Round "6"]
[White "MoonlighT89"]
[Black "Hikaru"]
[Result "0-1"]
[WhiteElo "2557"]
[BlackElo "3153"]
[TimeControl "180+2"]
[EndTime "14:24:04 PDT"]
[Termination "Hikaru won by resignation"]

1. e4 {[%clk 0:03:00.6]} 1... c5 {[%clk 0:03:00.8]} 2. Nf3 {[%clk 0:03:01.4]}
2... d6 {[%clk 0:03:02.1]} 3. d4 {[%clk 0:03:01.9]} 3... cxd4 {[%clk 0:03:04]}
4. Nxd4 {[%clk 0:03:03.2]} 4... Nf6 {[%clk 0:03:05.7]} 5. Nc3 {[%clk 0:03:04.6]}
5... a6 {[%clk 0:03:07.1]} 6. h3 {[%clk 0:03:05.7]} 6... e5 {[%clk 0:03:08.1]}
7. Nde2 {[%clk 0:03:06.8]} 7... h5 {[%clk 0:03:08.7]} 8. g3 {[%clk 0:02:57.1]}
8... b5 {[%clk 0:03:09.5]} 9. Bg2 {[%clk 0:02:57.2]} 9... Bb7 {[%clk 0:03:10.5]}
10. O-O {[%clk 0:02:44.7]} 10... Nbd7 {[%clk 0:03:11.3]} 11. Nd5 {[%clk
0:02:36.8]} 11... Nxd5 {[%clk 0:03:09.2]} 12. exd5 {[%clk 0:02:37.8]} 12... g6
{[%clk 0:03:10.8]} 13. f4 {[%clk 0:02:31.2]} 13... f5 {[%clk 0:03:11.7]} 14.
fxe5 {[%clk 0:02:24.8]} 14... dxe5 {[%clk 0:03:13.6]} 15. Be3 {[%clk 0:01:41.9]}
15... Bd6 {[%clk 0:03:12]} 16. Qd2 {[%clk 0:01:30.5]} 16... Rc8 {[%clk
0:03:08.6]} 17. Rad1 {[%clk 0:01:28.8]} 17... Qc7 {[%clk 0:03:07.4]} 18. Bh6
{[%clk 0:01:13.3]} 18... Qxc2 {[%clk 0:02:58.2]} 19. Qg5 {[%clk 0:00:59.8]}
19... Rg8 {[%clk 0:02:58.5]} 20. Rfe1 {[%clk 0:00:23]} 20... Be7 {[%clk
0:02:56.1]} 21. Qd2 {[%clk 0:00:19.2]} 21... Qxd2 {[%clk 0:02:57.1]} 22. Rxd2
{[%clk 0:00:21.1]} 22... Bb4 {[%clk 0:02:57.5]} 23. Nc3 {[%clk 0:00:21.3]} 23...
g5 {[%clk 0:02:58.4]} 24. h4 {[%clk 0:00:09.1]} 24... gxh4 {[%clk 0:03:00.3]}
25. gxh4 {[%clk 0:00:10.7]} 25... Rxc3 {[%clk 0:02:59.4]} 26. bxc3 {[%clk
0:00:11.1]} 26... Bxc3 {[%clk 0:03:01.3]} 27. Red1 {[%clk 0:00:11.3]} 27... Bxd2
{[%clk 0:03:02.5]} 28. Rxd2 {[%clk 0:00:13.2]} 28... Rg4 {[%clk 0:03:02.7]} 29.
Bg5 {[%clk 0:00:11.6]} 29... Nb6 {[%clk 0:03:04.1]} 30. Kh2 {[%clk 0:00:10.3]}
30... Ra4 {[%clk 0:02:51]} 31. Bf3 {[%clk 0:00:09.6]} 31... Kd7 {[%clk 0:02:52]}
32. Bxh5 {[%clk 0:00:08.5]} 32... Bxd5 {[%clk 0:02:53.1]} 33. Bg6 {[%clk
0:00:09.5]} 33... Ke6 {[%clk 0:02:53.3]} 34. h5 {[%clk 0:00:10.3]} 34... Rg4
{[%clk 0:02:50.4]} 35. h6 {[%clk 0:00:06.9]} 35... Nc4 {[%clk 0:02:38.4]} 36.
Rxd5 {[%clk 0:00:05.5]} 36... Rxg5 {[%clk 0:02:36]} 37. h7 {[%clk 0:00:03.5]}
37... Rxg6 {[%clk 0:02:37.6]} 38. h8=Q {[%clk 0:00:02.9]} 38... Kxd5 {[%clk
0:02:38.6]} 39. Qa8+ {[%clk 0:00:04.3]} 39... Rc6 {[%clk 0:02:38.9]} 40. Qd8+
{[%clk 0:00:02.8]} 40... Nd6 {[%clk 0:02:40.1]} 41. Kg2 {[%clk 0:00:02.6]} 41...
f4 {[%clk 0:02:39.3]} 42. Qg8+ {[%clk 0:00:04.1]} 42... Kd4 {[%clk 0:02:40.3]}
43. Qg7 {[%clk 0:00:04.9]} 43... Rc2+ {[%clk 0:02:39.2]} 44. Kf1 {[%clk
0:00:03.2]} 44... Nc4 {[%clk 0:02:39.8]} 45. Qa7+ {[%clk 0:00:03.6]} 45... Kd3
{[%clk 0:02:40.9]} 46. Qxa6 {[%clk 0:00:05]} 46... Rb2 {[%clk 0:02:41.9]} 47. a4
{[%clk 0:00:02.9]} 47... f3 {[%clk 0:02:41.8]} 48. axb5 {[%clk 0:00:02.9]} 48...
Ne3+ {[%clk 0:02:43.1]} 49. Kg1 {[%clk 0:00:04.4]} 49... f2+ {[%clk 0:02:44.8]}
0-1

[Event "*** Titled Tuesday Blitz"]
[Site "Chess.com"]
[Date "2019.10.01"]
[Round "6"]
[White "chesstatour"]
[Black "Godzillator"]
[Result "0-1"]
[WhiteElo "2032"]
[BlackElo "2371"]
[TimeControl "180+2"]
[EndTime "14:24:05 PDT"]
[Termination "Godzillator won by resignation"]

1. c4 {[%clk 0:03:01.9]} 1... c6 {[%clk 0:03:00.5]} 2. e4 {[%clk 0:02:59.5]}
2... d5 {[%clk 0:03:01.6]} 3. exd5 {[%clk 0:02:58.2]} 3... cxd5 {[%clk
0:03:03.2]} 4. cxd5 {[%clk 0:02:59.3]} 4... Nf6 {[%clk 0:03:04.8]} 5. Nc3 {[%clk
0:02:56.3]} 5... Nxd5 {[%clk 0:03:05.8]} 6. d4 {[%clk 0:02:52.4]} 6... e6 {[%clk
0:03:06.7]} 7. Nf3 {[%clk 0:02:53.3]} 7... Bb4 {[%clk 0:03:07.6]} 8. Bd2 {[%clk
0:02:49.3]} 8... O-O {[%clk 0:03:08.1]} 9. Bd3 {[%clk 0:02:46]} 9... Nc6 {[%clk
0:03:08.5]} 10. O-O {[%clk 0:02:46]} 10... Be7 {[%clk 0:03:09.3]} 11. a3 {[%clk
0:02:41.5]} 11... Bf6 {[%clk 0:03:09.6]} 12. Be3 {[%clk 0:01:38.2]} 12... Nxe3
{[%clk 0:03:06.9]} 13. fxe3 {[%clk 0:01:40.1]} 13... b6 {[%clk 0:03:05.1]} 14.
Rc1 {[%clk 0:01:25.2]} 14... Bb7 {[%clk 0:03:05.7]} 15. Qe2 {[%clk 0:01:11.7]}
15... Rc8 {[%clk 0:03:05.2]} 16. Ba6 {[%clk 0:01:01.5]} 16... Bxa6 {[%clk
0:03:00]} 17. Qxa6 {[%clk 0:01:03.4]} 17... Qd7 {[%clk 0:02:55.1]} 18. Rcd1
{[%clk 0:00:57.6]} 18... g6 {[%clk 0:02:50.6]} 19. Nd2 {[%clk 0:00:43.2]} 19...
Bg7 {[%clk 0:02:47.6]} 20. Nde4 {[%clk 0:00:34.2]} 20... Qe7 {[%clk 0:02:46.7]}
21. Ng3 {[%clk 0:00:21.6]} 21... Rfd8 {[%clk 0:02:46.5]} 22. Qe2 {[%clk
0:00:19.3]} 22... Rd7 {[%clk 0:02:34.4]} 23. Kh1 {[%clk 0:00:15.3]} 23... Rcd8
{[%clk 0:02:35.3]} 24. Rc1 {[%clk 0:00:16.4]} 24... Na5 {[%clk 0:02:27]} 25. Qb5
{[%clk 0:00:15.3]} 25... Bh6 {[%clk 0:02:21.9]} 26. Rfe1 {[%clk 0:00:14.6]}
26... Qh4 {[%clk 0:02:18.8]} 27. b4 {[%clk 0:00:13.6]} 27... Nb7 {[%clk
0:02:18.1]} 28. Qe2 {[%clk 0:00:13.1]} 28... Nd6 {[%clk 0:02:17.2]} 29. Rf1
{[%clk 0:00:13.2]} 29... Nf5 {[%clk 0:02:12.4]} 30. Nxf5 {[%clk 0:00:11.2]}
30... exf5 {[%clk 0:02:13.7]} 31. Rce1 {[%clk 0:00:08.9]} 31... Re8 {[%clk
0:02:13.5]} 32. Qf3 {[%clk 0:00:08.7]} 32... Qg5 {[%clk 0:02:09.8]} 33. e4
{[%clk 0:00:08.7]} 33... Qd2 {[%clk 0:01:59.1]} 34. exf5 {[%clk 0:00:08.3]}
34... Rxe1 {[%clk 0:01:58.7]} 35. fxg6 {[%clk 0:00:06.3]} 35... Rxf1+ {[%clk
0:01:58.3]} 36. Qxf1 {[%clk 0:00:07]} 36... hxg6 {[%clk 0:01:58.9]} 37. Ne4
{[%clk 0:00:06.5]} 37... Qxd4 {[%clk 0:01:56.8]} 38. Nf6+ {[%clk 0:00:04.9]}
38... Qxf6 {[%clk 0:01:57]} 0-1

[Event "*** Titled Tuesday Blitz"]
[Site "Chess.com"]
[Date "2019.10.01"]
[Round "6"]
[White "chessS1r"]
[Black "benhal"]
[Result "1-0"]
[WhiteElo "2477"]
[BlackElo "2311"]
[TimeControl "180+2"]
[EndTime "14:24:09 PDT"]
[Termination "chessS1r won by resignation"]

1. d4 {[%clk 0:03:01.9]} 1... Nf6 {[%clk 0:02:53.5]} 2. Nf3 {[%clk 0:03:01.4]}
2... c5 {[%clk 0:02:51.1]} 3. d5 {[%clk 0:03:01.7]} 3... b5 {[%clk 0:02:50.8]}
4. Bg5 {[%clk 0:02:58.9]} 4... Qb6 {[%clk 0:02:51]} 5. Bxf6 {[%clk 0:02:59.3]}
5... Qxf6 {[%clk 0:02:52.9]} 6. c3 {[%clk 0:02:59.4]} 6... g6 {[%clk 0:02:53.2]}
7. Nbd2 {[%clk 0:02:40.2]} 7... Bg7 {[%clk 0:02:53.4]} 8. e4 {[%clk 0:02:40.5]}
8... Qb6 {[%clk 0:02:53.5]} 9. a4 {[%clk 0:02:38.1]} 9... b4 {[%clk 0:02:54.3]}
10. Nc4 {[%clk 0:02:38.9]} 10... Qb7 {[%clk 0:02:54.2]} 11. e5 {[%clk
0:02:27.5]} 11... O-O {[%clk 0:02:54.5]} 12. Be2 {[%clk 0:02:17]} 12... d6
{[%clk 0:02:55.2]} 13. O-O {[%clk 0:02:13.9]} 13... dxe5 {[%clk 0:02:49.3]} 14.
Nfxe5 {[%clk 0:02:15.2]} 14... Nd7 {[%clk 0:02:49.5]} 15. Nc6 {[%clk 0:02:02.2]}
15... Nb6 {[%clk 0:02:42.7]} 16. Nxb6 {[%clk 0:01:56.8]} 16... axb6 {[%clk
0:02:44.6]} 17. Bf3 {[%clk 0:01:57.5]} 17... bxc3 {[%clk 0:02:36.8]} 18. bxc3
{[%clk 0:01:59.4]} 18... Bf5 {[%clk 0:02:32.3]} 19. Re1 {[%clk 0:01:44.5]} 19...
Rae8 {[%clk 0:02:21.4]} 20. d6 {[%clk 0:01:41.5]} 20... exd6 {[%clk 0:02:16.3]}
21. Ne7+ {[%clk 0:01:39.6]} 21... Qxe7 {[%clk 0:02:15.1]} 22. Rxe7 {[%clk
0:01:39.7]} 22... Rxe7 {[%clk 0:02:17]} 23. Qxd6 {[%clk 0:01:40.6]} 23... Bxc3
{[%clk 0:02:16.3]} 24. Qxe7 {[%clk 0:01:26.2]} 24... Bxa1 {[%clk 0:02:16.2]} 25.
Qc7 {[%clk 0:01:27.7]} 25... Re8 {[%clk 0:02:08.6]} 26. g4 {[%clk 0:01:28.3]}
26... Bc2 {[%clk 0:02:03.5]} 27. Qxb6 {[%clk 0:01:22.5]} 27... Bxa4 {[%clk
0:02:02.4]} 28. Qa5 {[%clk 0:01:13.1]} 28... Bd4 {[%clk 0:01:19.6]} 29. Qxa4
{[%clk 0:01:12.3]} 29... Rb8 {[%clk 0:01:21.2]} 30. Bd5 {[%clk 0:01:05.6]} 30...
Rb2 {[%clk 0:01:21.3]} 31. Qe8+ {[%clk 0:01:05]} 31... Kg7 {[%clk 0:01:21.2]}
32. Qxf7+ {[%clk 0:01:06]} 32... Kh6 {[%clk 0:01:22.7]} 33. h4 {[%clk
0:00:53.3]} 33... Bxf2+ {[%clk 0:01:13.2]} 34. Qxf2 {[%clk 0:00:53.3]} 34...
Rxf2 {[%clk 0:01:12.9]} 35. Kxf2 {[%clk 0:00:55.2]} 35... Kg7 {[%clk 0:01:09.6]}
36. g5 {[%clk 0:00:50.1]} 36... h6 {[%clk 0:01:10.5]} 37. Ke3 {[%clk 0:00:50.5]}
37... hxg5 {[%clk 0:01:12.4]} 38. hxg5 {[%clk 0:00:51.4]} 38... Kf8 {[%clk
0:01:14.1]} 39. Kf4 {[%clk 0:00:52.4]} 39... Ke7 {[%clk 0:01:13.4]} 40. Ke5
{[%clk 0:00:53.4]} 1-0

[Event "*** Titled Tuesday Blitz"]
[Site "Chess.com"]
[Date "2019.10.01"]
[Round "6"]
[White "NiranjanNavalgund"]
[Black "raviteja81293"]
[Result "0-1"]
[WhiteElo "2429"]
[BlackElo "2609"]
[TimeControl "180+2"]
[EndTime "14:24:10 PDT"]
[Termination "raviteja81293 won by resignation"]

1. d4 {[%clk 0:03:01.9]} 1... d5 {[%clk 0:03:00.3]} 2. Nf3 {[%clk 0:03:03.1]}
2... e6 {[%clk 0:03:01.1]} 3. c4 {[%clk 0:03:04.4]} 3... Nf6 {[%clk 0:03:02.8]}
4. g3 {[%clk 0:03:05.2]} 4... Nbd7 {[%clk 0:03:02.3]} 5. Bg2 {[%clk 0:03:05.9]}
5... Be7 {[%clk 0:03:03.9]} 6. O-O {[%clk 0:03:06.9]} 6... O-O {[%clk
0:03:04.5]} 7. Nbd2 {[%clk 0:03:05.9]} 7... b6 {[%clk 0:03:03.3]} 8. b3 {[%clk
0:03:01.2]} 8... Bb7 {[%clk 0:03:03.6]} 9. Bb2 {[%clk 0:03:02.7]} 9... c5 {[%clk
0:03:04.5]} 10. cxd5 {[%clk 0:03:03.2]} 10... Nxd5 {[%clk 0:03:03.8]} 11. Rc1
{[%clk 0:03:00.8]} 11... Rc8 {[%clk 0:02:59.5]} 12. a3 {[%clk 0:02:56.6]} 12...
cxd4 {[%clk 0:02:58.5]} 13. Nxd4 {[%clk 0:02:56.7]} 13... Rxc1 {[%clk
0:02:59.9]} 14. Qxc1 {[%clk 0:02:58.6]} 14... Qa8 {[%clk 0:03:01]} 15. N2f3
{[%clk 0:02:34.1]} 15... Rc8 {[%clk 0:02:52.3]} 16. Qa1 {[%clk 0:02:34.7]} 16...
Bf6 {[%clk 0:02:53.4]} 17. Rc1 {[%clk 0:02:29.7]} 17... Nc5 {[%clk 0:02:47.8]}
18. Qa2 {[%clk 0:02:23.3]} 18... Ne4 {[%clk 0:02:38.1]} 19. Nb5 {[%clk 0:02:20]}
19... a6 {[%clk 0:02:22.2]} 20. Rxc8+ {[%clk 0:02:04.2]} 20... Qxc8 {[%clk
0:02:24.1]} 21. Nfd4 {[%clk 0:01:32]} 21... axb5 {[%clk 0:01:48.8]} 22. Bxe4
{[%clk 0:01:31.2]} 22... Bxd4 {[%clk 0:01:46.2]} 23. Bxd4 {[%clk 0:01:28.2]}
23... Qc1+ {[%clk 0:01:45.5]} 24. Kg2 {[%clk 0:01:29]} 24... Nc3 {[%clk
0:01:37.1]} 25. Bxc3 {[%clk 0:01:21.4]} 25... Bxe4+ {[%clk 0:01:37.4]} 26. f3
{[%clk 0:01:22.5]} 26... Bxf3+ {[%clk 0:01:29.8]} 27. exf3 {[%clk 0:01:24.4]}
27... Qxc3 {[%clk 0:01:30.9]} 28. Qb1 {[%clk 0:01:22.5]} 28... g6 {[%clk
0:01:29.5]} 29. Qd1 {[%clk 0:01:22.7]} 29... Kg7 {[%clk 0:01:28.8]} 30. Qd6
{[%clk 0:01:19]} 30... Qxb3 {[%clk 0:01:24.6]} 31. Qxb6 {[%clk 0:01:19.4]} 31...
Qa2+ {[%clk 0:01:24.9]} 32. Kh3 {[%clk 0:01:14.5]} 32... Qd5 {[%clk 0:01:26.8]}
33. Kg2 {[%clk 0:01:12.7]} 33... Qa2+ {[%clk 0:01:28.3]} 34. Kg1 {[%clk
0:01:12.6]} 34... Qxa3 {[%clk 0:01:25]} 35. Qd4+ {[%clk 0:01:10.7]} 35... Kg8
{[%clk 0:01:24.4]} 36. Qd8+ {[%clk 0:01:05.5]} 36... Qf8 {[%clk 0:01:25.8]} 37.
Qb6 {[%clk 0:01:06.9]} 37... b4 {[%clk 0:01:27.2]} 38. Kg2 {[%clk 0:01:07.5]}
38... h5 {[%clk 0:01:28.1]} 39. h4 {[%clk 0:01:07.6]} 39... Qe7 {[%clk
0:01:28.7]} 40. Kh3 {[%clk 0:01:06.2]} 40... e5 {[%clk 0:01:29.2]} 41. Qa6
{[%clk 0:00:56.1]} 41... Qe6+ {[%clk 0:01:30]} 0-1